Workbook

Sheet 人事表
A1: 销售点 | B1: 品牌 | C1: 销售员 | D1: 员工编号 | E1: 入职时间 | F1: 工作年限 | G1: 员工级别 | H1: 基本工资
A2: 天津 | B2: 宝马 | C2: 刘佳佳 | D2: 892979 | E2: 2001-06-13 | F2: 11 | G2: C类 | H2: 6400
A3: 沈阳 | B3: 奔驰 | C3: 钱明杰 | D3: 356268 | E3: 2006-03-14 | F3: 7 | G3: B类 | H3: 8900
A4: 长春 | B4: 别克 | C4: 崔靖易 | D4: 748898 | E4: 2007-06-27 | F4: 5 | G4: A类 | H4: 8300
A5: 哈尔滨 | B5: 本田 | C5: 康含玉 | D5: 743899 | E5: 2000-05-21 | F5: 13 | G5: B类 | H5: 6200
A6: 上海 | B6: 比亚迪 | C6: 张慕青 | D6: 379405 | E6: 2000-05-06 | F6: 13 | G6: A类 | H6: 8800
A7: 南京 | B7: 标致 | C7: 李若雁 | D7: 382097 | E7: 2007-04-27 | F7: 11 | G7: A类 | H7: 9600
A8: 北京 | B8: 奥迪 | C8: 唐宇盈 | D8: 557954 | E8: 2002-11-29 | F8: 10 | G8: A类 | H8: 6200
A9: 杭州 | B9: 奔腾 | C9: 李诗 | D9: 869305 | E9: 2006-03-24 | F9: 7 | G9: A类 | H9: 7500
A10: 合肥 | B10: 保时捷 | C10: 李诗诗 | D10: 494578 | E10: 2001-08-31 | F10: 11 | G10: C类 | H10: 9100
A11: 郑州 | B11: 现代 | C11: 康梦菡 | D11: 361307 | E11: 2001-04-19 | F11: 12 | G11: B类 | H11: 9600
A12: 武汉 | B12: 雪佛兰 | C12: 张凡蕾 | D12: 571797 | E12: 2002-01-18 | F12: 11 | G12: C类 | H12: 7500
A13: 长沙 | B13: 雪铁龙 | C13: 康水桃 | D13: 948592 | E13: 2003-12-13 | F13: 9 | G13: B类 | H13: 8300
A14: 广州 | B14: 宾利 | C14: 康熠彤 | D14: 514741 | E14: 2002-03-20 | F14: 11 | G14: C类 | H14: 9900
A15: 重庆 | B15: 大众 | C15: 钱友易 | D15: 273846 | E15: 2005-07-05 | F15: 7 | G15: B类 | H15: 8100
A16: 成都 | B16: 帝豪 | C16: 李青槐 | D16: 874727 | E16: 2001-04-15 | F16: 12 | G16: A类 | H16: 7400
A17: 贵阳 | B17: 丰田 | C17: 崔夜蓉 | D17: 392639 | E17: 2010-12-31 | F17: 2 | G17: A类 | H17: 8600
A18: 西安 | B18: 福特 | C18: 李元风 | D18: 293939 | E18: 2011-05-22 | F18: 2 | G18: A类 | H18: 7000
A19: 兰州 | B19: 法拉利 | C19: 崔峻熙 | D19: 753018 | E19: 2009-07-23 | F19: 3 | G19: B类 | H19: 7100
A20: 哈尔滨 | B20: 菲亚特 | C20: 张山兰 | D20: 315388 | E20: 2010-06-19 | F20: 2 | G20: C类 | H20: 8700
A21: 上海 | B21: 凯迪拉克 | C21: 崔安蕾 | D21: 669939 | E21: 2003-06-19 | F21: 9 | G21: C类 | H21: 8000
A22: 南京 | B22: 克莱斯勒 | C22: 钱梦琪 | D22: 467138 | E22: 2007-10-03 | F22: 5 | G22: C类 | H22: 6000
A23: 杭州 | B23: 雷克萨斯 | C23: 李如波 | D23: 521419 | E23: 2006-06-15 | F23: 6 | G23: B类 | H23: 9400
A24: 合肥 | B24: 雷诺 | C24: 康如彤 | D24: 391628 | E24: 2002-03-18 | F24: 11 | G24: A类 | H24: 7000
A25: 郑州 | B25: 路虎 | C25: 张语蓉 | D25: 139074 | E25: 2001-03-06 | F25: 12 | G25: C类 | H25: 6500
A26: 武汉 | B26: 马自达 | C26: 张之柔 | D26: 224795 | E26: 2006-01-04 | F26: 7 | G26: C类 | H26: 9700
A27: 长沙 | B27: MINI | C27: 康傲珊 | D27: 788526 | E27: 2011-06-26 | F27: 1 | G27: C类 | H27: 7700
A28: 北京 | B28: 迈巴赫 | C28: 钱鑫鹏 | D28: 147112 | E28: 2009-12-08 | F28: 3 | G28: B类 | H28: 6700
A29: 天津 | B29: 玛莎拉蒂 | C29: 刘之桃 | D29: 497552 | E29: 2009-05-18 | F29: 4 | G29: A类 | H29: 9500
A30: 沈阳 | B30: 欧宝 | C30: 刘昊天 | D30: 846146 | E30: 2001-09-02 | F30: 11 | G30: B类 | H30: 8800
A31: 长春 | B31: 讴歌 | C31: 王夏青 | D31: 813392 | E31: 2007-12-11 | F31: 5 | G31: A类 | H31: 9800
A32: 哈尔滨 | B32: 起亚 | C32: 王芷波 | D32: 644227 | E32: 2005-05-21 | F32: 8 | G32: A类 | H32: 9700
A33: 上海 | B33: 全球鹰 | C33: 周又晴 | D33: 782070 | E33: 2007-07-04 | F33: 5 | G33: C类 | H33: 7300
A34: 南京 | B34: 奇瑞 | C34: 赵弘文 | D34: 834750 | E34: 2006-12-23 | F34: 6 | G34: B类 | H34: 7900
A35: 杭州 | B35: 日产 | C35: 赵天荷 | D35: 821812 | E35: 2012-11-20 | F35: 0 | G35: B类 | H35: 6200
A36: 合肥 | B36: 荣威 | C36: 代曼文 | D36: 174665 | E36: 2005-02-05 | F36: 8 | G36: B类 | H36: 8700
A37: 郑州 | B37: 三菱 | C37: 代采枫 | D37: 524623 | E37: 2004-10-12 | F37: 8 | G37: C类 | H37: 6100
A38: 沈阳 | B38: 斯巴鲁 | C38: 周昊然 | D38: 591045 | E38: 2012-01-24 | F38: 1 | G38: A类 | H38: 8400
A39: 长春 | B39: Smart | C39: 周冰枫 | D39: 427743 | E39: 2002-03-25 | F39: 11 | G39: B类 | H39: 6200
A40: 哈尔滨 | B40: 沃尔沃 | C40: 王海安 | D40: 489643 | E40: 2009-09-04 | F40: 3 | G40: A类 | H40: 7300

Sheet 副表
A1: 2013款奥迪A4L | C1: 销售提成金
A2: 30TFSI手动舒适型 | B2: 27.28 | C2: =B2*0.02 -> 0.5456 | F2: 月份 | G2: 销量 | H2: 售价 | I2: 金额
A3: 30TFSI自动舒适型 | B3: 29.1 | C3: 0.582 | F3: 1 | G3: 14 | H3: 27.28 | I3: =G3*H3 -> 381.92
A4: 35TFSI自动标准型 | B4: 30.98 | C4: 0.6196 | F4: 2 | G4: 18 | H4: 29.1 | I4: 523.8
A5: 35TFSI自动舒适型 | B5: 32.99 | C5: 0.6598 | F5: 3 | G5: 22 | H5: 30.98 | I5: 681.56
A6: 40TFSI quattro 个性运动型 | B6: 34.9 | C6: 0.698 | F6: 4 | G6: 8 | H6: 32.99 | I6: 263.92
A7: 35TFSI自动技术型 | B7: 36.98 | C7: 0.7396 | F7: 5 | G7: 17 | H7: 34.9 | I7: 593.3
A8: 35TFSI自动豪华型 | B8: 39.9 | C8: 0.798 | F8: 6 | G8: 23 | H8: 36.98 | I8: 850.54
A9: 40TFSI quattro 运动型 | B9: 46.96 | C9: 0.9392 | F9: 7 | G9: 15 | H9: 39.9 | I9: 598.5
F10: 8 | G10: 21 | H10: 46.96 | I10: 986.16
A11: 车身参数 | B11: 30TFSI手动舒适型 | D11: 35TFSI自动标准型 | F11: 9 | G11: 22 | H11: 27.28 | I11: 600.16
A12: 长 | B12: 4761 | D12: 4761 | F12: 10 | G12: 22 | H12: 29.1 | I12: 640.2
A13: 宽 | B13: 1826 | D13: 1826 | F13: 11 | G13: 16 | H13: 30.98 | I13: 495.68
A14: 高 | B14: 1439 | D14: 1439 | F14: 12 | G14: 24 | H14: 32.99 | I14: 791.76
A15: 轴距 | B15: 2869 | D15: 2869
A16: 消费税 | B16: =B2*0.05 -> 1.364 | D16: =B4*0.05 -> 1.549 | I16: 综合油耗(L/100km) | J16: 最高车速(km/h)
A18: 车身参数 | B18: 30TFSI自动舒适型 | D18: 35TFSI自动舒适型 | G18: 30TFSI手动舒适型 | I18: 6.5 | J18: 220
A19: 长 | B19: 4761 | D19: 4761 | G19: 30TFSI自动舒适型 | I19: 6.5 | J19: 218
A20: 宽 | B20: 1826 | D20: 1826
A21: 高 | B21: 1439 | D21: 1439 | G21: 35TFSI自动标准型 | I21: 6.6 | J21: 230
A22: 轴距 | B22: 2869 | D22: 2869 | G22: 35TFSI自动舒适型 | I22: 6.6 | J22: 230
B23: =B3*0.05 -> 1.455 | D23: =B5*0.05 -> 1.6495
G24: 总计 | H24: 销量 | I24: =SUM(G3:G14) -> 222
A25: 车身参数 | B25: 40TFSI quattro 个性运动型 | D25: 35TFSI自动技术型 | H25: 金额 | I25: =SUM(I3:I14) -> 7407.5
A26: 长 | B26: 4761 | D26: 4761
A27: 宽 | B27: 1826 | D27: 1826
A28: 高 | B28: 1439 | D28: 1439
A29: 轴距 | B29: 2869 | D29: 2869
B30: =B9*0.05 -> 2.348 | D30: =B5*0.05 -> 1.6495
A32: 车身参数 | B32: 35TFSI自动豪华型 | D32: 40TFSI quattro 运动型
A33: 长 | B33: 4761 | D33: 4761
A34: 宽 | B34: 1826 | D34: 1826
A35: 高 | B35: 1439 | D35: 1439
A36: 轴距 | B36: 2869 | D36: 2869
B37: =B8*0.05 -> 1.995 | D37: =B9*0.05 -> 2.348

Sheet Sheet1

Sheet Sheet2

Sheet Sheet3
